bitfinex-derivatives/quotes_SOLF0:USTF0_20250105
["timestamp","ask_amount","ask_price","bid_price","bid_amount"]
[1736083674123,3.49821914,214.58,214.47,4.8918]
[1736083674622,3.49821914,214.58,214.47,2.56]
[1736083675026,11.84632885,214.58,214.47,2.56]
[1736083675224,2.3313,214.53,214.49,2.3316]
[1736083681421,8.34767308,214.59,214.55,2.3309]
[1736083681625,150.77467279,214.6,214.55,4.8909]
[1736083681822,148.44417279,214.6,214.55,2.56]
[1736083682225,2.9579,214.63,214.55,2.56]
[1736083683034,2.3308,214.58,214.55,2.56]
[1736083683232,2.9579,214.63,214.55,2.56]
[1736083683626,14.7966299,214.63,214.55,2.56]
[1736083683825,2.3307,214.58,214.55,2.56]
[1736083685537,2.3306,214.6,214.55,2.56]
[1736083686035,2.3303,214.61,214.56,2.3309]
[1736083688735,2.9579,214.63,214.55,2.56]
[1736083688938,2.3305,214.6,214.55,4.891]
[1736083689442,2.9579,214.63,214.55,2.56]
[1736083689638,2.3307,214.58,214.55,2.56]
[1736083690043,2.9579,214.63,214.55,2.56]
[1736083690242,2.3308,214.57,214.55,2.56]
[1736083691441,2.9579,214.63,214.55,2.56]
[1736083691641,2.3307,214.58,214.55,2.56]
[1736083694144,2.3304,214.61,214.55,2.56]
[1736083694342,2.9579,214.63,214.55,2.56]
[1736083695445,2.3305,214.6,214.55,4.8909]
[1736083697248,2.3303,214.62,214.56,2.3308]
[1736083697844,2.3303,214.62,214.57,2.3308]
[1736083698846,2.3304,214.61,214.57,2.3308]
[1736083700144,5.2881,214.63,214.58,2.3307]
[1736083701150,2.3302,214.63,214.55,2.56]
[1736083702251,2.3303,214.62,214.58,2.3307]
[1736083702447,2.3303,214.62,214.55,2.56]
[1736083702849,2.3303,214.62,214.57,2.3308]
[1736083703850,2.7923,214.68,214.53,69.84427989]
[1736083704051,2.7923,214.68,214.54,2.58]
[1736083704254,2.33,214.64,214.57,2.3308]
[1736083704455,2.7923,214.68,214.57,2.3308]
[1736083704950,2.3303,214.62,214.57,2.3308]
[1736083705658,2.3304,214.61,214.57,2.3308]
[1736083707350,2.3306,214.6,214.55,2.3309]
[1736083707554,14.61166366,214.68,214.54,2.58]
[1736083707754,0.75427808,214.67,214.54,2.58]
[1736083707957,0.75427808,214.67,214.54,4.9111]
[1736083708254,14.61166366,214.68,214.54,4.9111]
[1736083708452,2.3306,214.59,214.54,4.9111]
[1736083710859,2.3306,214.59,214.54,2.3311]
[1736083711155,2.3306,214.59,214.55,2.58]
[1736083712068,2.3307,214.58,214.55,2.58]
[1736083713165,2.3307,214.58,214.55,4.911]
[1736083714866,2.3307,214.58,214.55,2.331]
[1736083715069,2.3307,214.58,214.56,2.58]
[1736083715871,128.82125044,214.66,214.53,69.84427989]
[1736083716067,12.58510204,214.65,214.55,2.58]
[1736083716272,11.83072797,214.65,214.55,2.58]
[1736083716568,2.3308,214.58,214.55,2.58]
[1736083717669,2.3305,214.6,214.55,2.58]
[1736083719570,2.3305,214.6,214.55,4.911]
[1736083722572,1.4816,214.63,214.55,2.58]
[1736083722772,2.3307,214.58,214.55,2.58]
[1736083722971,1.4816,214.63,214.55,2.58]
[1736083723277,1.4816,214.63,214.42,6.70968512]
[1736083723466,2.58,214.62,214.43,2.58]
[1736083723670,11.99729281,214.62,214.44,2.58]
[1736083723872,17.77131822,214.61,214.45,2.58]
[1736083724177,14.01,214.59,214.45,2.58]
[1736083724469,31.76841897,214.58,214.45,2.58]
[1736083724780,20.33938098,214.57,214.45,2.58]
[1736083725075,2.3316,214.5,214.45,2.58]
[1736083725265,4.95201761,214.56,214.45,2.58]
[1736083725466,2.3317,214.49,214.45,2.58]
[1736083728067,2.3317,214.49,214.45,4.9121]
[1736083729672,1.4545,214.56,214.46,2.3319]
[1736083729673,2.3315,214.5,214.46,2.3319]
[1736083729878,1.4545,214.56,214.45,2.58]
[1736083731679,2.3314,214.52,214.48,2.3317]
[1736083732076,2.3312,214.53,214.48,2.3317]
[1736083734677,1.4545,214.56,214.46,2.58]
[1736083735675,1.4545,214.56,214.4,6.85604599]
[1736083735877,1.4545,214.56,214.44,2.58]
[1736083736074,4.0345,214.56,214.44,2.58]
[1736083736478,2.3316,214.5,214.45,2.3321]
[1736083737377,2.3316,214.5,214.46,2.332]
[1736083737781,2.3314,214.52,214.44,2.58]
[1736083738578,2.3314,214.52,214.47,2.3318]
[1736083740281,2.3312,214.53,214.48,2.3317]
[1736083742679,2.3312,214.53,214.44,2.58]
[1736083742879,2.3312,214.53,214.49,2.3316]
[1736083744682,2.331,214.55,214.5,2.3315]
[1736083758592,2.331,214.55,214.51,2.3314]
[1736083760092,3.7854,214.56,214.51,2.3314]
[1736083761095,2.3309,214.56,214.51,2.3314]
[1736083766499,2.331,214.55,214.51,2.3314]
[1736083767498,49.15287259,214.59,214.51,2.3314]
[1736083767699,2.3309,214.56,214.51,2.3314]
[1736083768299,49.15287259,214.59,214.49,2.56]
[1736083768503,2.3308,214.57,214.52,2.3313]
[1736083790322,4.3783,214.61,214.52,2.3313]
[1736083791527,7.8762239,214.61,214.52,2.3313]
[1736083791724,2.3309,214.57,214.52,2.3313]
[1736083801129,2.3309,214.57,214.53,2.3312]
[1736083802730,2.331,214.56,214.52,2.3313]
[1736083802932,152.81595286,214.61,214.51,2.56]
[1736083803324,2.3307,214.58,214.51,4.8914]
[1736083803530,3.49801816,214.6,214.51,4.8914]
[1736083803735,3.49801816,214.6,214.51,2.56]
[1736083804033,11.84886209,214.6,214.51,2.56]
[1736083805027,140.67011253,214.6,214.51,2.56]
[1736083805230,128.82125044,214.6,214.51,2.56]
[1736083805736,133.19955044,214.61,214.51,2.56]
[1736083806533,2.3306,214.59,214.54,2.3311]
[1736083809934,2.3307,214.58,214.54,2.3311]
[1736083810437,2.3307,214.58,214.51,2.56]
[1736083810638,12.73194597,214.61,214.52,2.3312]
[1736083810938,3.49798808,214.6,214.52,2.3312]
[1736083811140,2.331,214.56,214.51,2.56]
[1736083811535,3.49798808,214.6,214.51,2.56]
[1736083811536,9.42661779,214.6,214.51,2.56]
[1736083811735,17.78026376,214.6,214.5,77.19540305]
[1736083811938,3.49798808,214.59,214.5,77.19540305]
[1736083812336,11.85163405,214.59,214.5,77.19540305]
[1736083813435,2.331,214.56,214.51,2.3314]
[1736083814940,9.42701237,214.58,214.5,74.86390305]
[1736083815241,17.78065834,214.58,214.5,74.86390305]
[1736083815431,2.3312,214.54,214.5,74.86390305]
[1736083817844,3.72,214.53,214.5,74.86390305]
[1736083818442,23.71,214.53,214.5,74.86390305]
[1736083818942,3.72,214.52,214.5,74.86390305]
[1736083819243,3.72,214.52,214.4,6.85604599]
[1736083819443,2.3315,214.51,214.46,2.332]
[1736083819940,6.9915,214.51,214.41,2.56]
[1736083820143,6.9915,214.51,214.44,2.3322]
[1736083820339,2.3316,214.5,214.41,2.56]
[1736083820733,2.3316,214.5,214.43,2.3323]
[1736083820937,2.3316,214.5,214.42,2.56]
[1736083822042,4.66,214.51,214.42,2.56]
[1736083822243,2.3317,214.49,214.44,2.3321]
[1736083823449,4.66,214.51,214.42,2.56]
[1736083823743,2.3316,214.5,214.42,2.56]
[1736083824448,2.3316,214.5,214.46,2.3319]
[1736083827851,2.3316,214.5,214.45,2.3321]
[1736083828051,4.66,214.51,214.45,2.3321]
[1736083828247,2.3317,214.49,214.45,2.3321]
[1736083828641,2.3317,214.49,214.42,2.56]
[1736083828952,2.3319,214.47,214.4,9.41604599]
[1736083829855,2.3319,214.47,214.42,2.3324]
[1736083830756,4.66,214.51,214.4,6.85604599]
[1736083831049,17.73,214.52,214.4,6.85604599]
[1736083831264,2.3323,214.44,214.4,6.85604599]
[1736083831961,4.66,214.43,214.4,6.85604599]
[1736083832158,4.66,214.43,214.41,2.3325]
[1736083834461,4.66,214.43,214.42,2.3324]
[1736083838959,8.39,214.43,214.42,2.3324]
[1736083842661,26.41,214.43,214.42,2.3324]
[1736083843051,30.14,214.43,214.42,2.3324]
[1736083844360,44.79,214.43,214.42,2.3324]
[1736083858479,44.79,214.43,214.39,2.56]
[1736083858679,40.13,214.43,214.4,2.3326]
[1736083858869,40.13,214.43,214.39,2.56]
[1736083859280,40.13,214.43,214.36,2.56]
[1736083859878,4.66,214.42,214.4,2.3326]
[1736083861382,24.4,214.42,214.4,2.3326]
[1736083863391,3.73,214.41,214.4,2.3326]
[1736083866690,20.52,214.41,214.4,2.3326]
[1736083869190,24.25,214.41,214.4,2.3326]
[1736083875498,37.73,214.41,214.4,2.3326]
[1736083879799,37.73,214.41,214.37,79.09251224]
[1736083880006,37.73,214.41,214.4,2.3326]
[1736083883104,42.39,214.41,214.4,2.3326]
[1736083893609,128.82125044,214.54,214.53,2.3312]
[1736083893816,128.82125044,214.54,214.53,4.8912]
[1736083894505,2.9406,214.66,214.53,2.56]
[1736083894705,3.72,214.65,214.6,2.3303]
[1736083894913,8.34,214.65,214.6,2.3303]
[1736083895608,8.34,214.65,214.58,2.56]
[1736083895609,8.34,214.65,214.5,73.98351467]
[1736083895816,8.34,214.65,214.54,2.56]
[1736083896315,8.34,214.65,214.55,3.93194095]
[1736083896514,8.34,214.65,214.54,2.56]
[1736083897010,8.34,214.65,214.56,2.3309]
[1736083897011,2.3302,214.63,214.56,2.3309]
[1736083897809,8.34,214.65,214.56,2.3309]
[1736083898010,2.3302,214.62,214.56,2.3309]
[1736083898215,8.34,214.65,214.54,2.331]
[1736083899318,2.3304,214.61,214.55,2.331]
[1736083900012,2.3305,214.6,214.55,2.331]
[1736083900217,8.34,214.65,214.53,4.8912]
[1736083900516,8.34,214.65,214.53,2.56]
[1736083901508,2.3305,214.6,214.54,2.3311]
[1736083903415,2.3305,214.6,214.55,2.331]
[1736083903909,2.3309,214.56,214.5,76.31501467]
[1736083904113,2.9409,214.55,214.5,76.31501467]
[1736083905009,5.2719,214.55,214.5,76.31501467]
[1736083909111,2.9409,214.55,214.54,2.3311]
[1736083912622,2.9409,214.55,214.54,2.3311]
[1736083913621,2.3306,214.59,214.54,2.3311]
[1736083915225,51.47182765,214.6,214.51,2.56]
[1736083915427,51.47182765,214.6,214.58,2.3306]
[1736083916229,4.3565,214.64,214.58,2.3306]
[1736083916428,2.3302,214.62,214.58,2.3306]
[1736083917031,3.72,214.61,214.57,2.3308]
[1736083918330,2.3306,214.59,214.54,2.331]
[1736083918535,2.3306,214.59,214.53,2.64]
[1736083919636,2.3306,214.59,214.55,2.331]
[1736083920135,0.91,214.58,214.55,2.331]
[1736083922134,19.69,214.58,214.55,2.331]
[1736083922926,3.72,214.57,214.55,2.331]
[1736083925136,18.86,214.57,214.55,2.331]
[1736083926937,18.86,214.57,214.56,2.3309]
[1736083934140,18.86,214.57,214.53,2.64]
[1736083934335,18.86,214.57,214.54,2.3311]
[1736083935141,18.86,214.57,214.55,2.3309]
[1736083936334,3.72,214.56,214.55,2.3309]
[1736083938831,3.72,214.56,214.55,6.28916219]
[1736083939036,3.72,214.56,214.54,2.3311]
[1736083939238,0.91,214.55,214.54,2.3311]
[1736083940738,0.91,214.55,214.54,6.28986748]
[1736083941038,0.91,214.55,214.54,2.3311]
[1736083941237,0.91,214.55,214.54,6.28901465]
[1736083942233,21.19,214.55,214.54,6.28901465]
[1736083943338,35.15,214.55,214.54,6.28901465]
[1736083946135,38.87,214.55,214.54,6.28901465]
[1736083947348,38.87,214.55,214.54,6.28401755]
[1736083948648,42.59,214.55,214.54,6.28401755]
[1736083953452,42.59,214.55,214.54,6.286252]
[1736083953955,42.59,214.55,214.54,2.3311]
[1736083954157,42.59,214.55,214.54,6.2870096]
[1736083956557,42.59,214.55,214.54,6.28720718]
[1736083960255,42.59,214.55,214.54,2.3311]
[1736083960455,42.59,214.55,214.54,6.28666813]
[1736083962674,42.59,214.55,214.54,2.3311]
[1736083962863,42.59,214.55,214.54,6.2875311]
[1736083963259,42.59,214.55,214.54,2.3311]
[1736083963464,42.59,214.55,214.54,6.28756588]
[1736083965862,42.59,214.55,214.54,6.28724297]
[1736083971967,42.59,214.55,214.54,2.3311]
[1736083972163,42.59,214.55,214.54,6.28127903]
[1736083972561,42.59,214.55,214.54,6.281445]
[1736083974263,42.59,214.55,214.54,6.28049054]
[1736083975075,42.59,214.55,214.54,2.3311]
[1736083975273,42.59,214.55,214.54,6.27948605]
[1736083978275,42.59,214.55,214.54,2.3311]
[1736083978473,42.59,214.55,214.54,6.27942867]
[1736083978677,42.59,214.55,214.54,8.89942867]
[1736083980977,42.59,214.55,214.54,4.9511]
[1736083981175,39.6973,214.55,214.54,8.89863264]
[1736083981375,18.6741,214.55,214.54,8.89863264]
[1736083981569,7.44,214.55,214.54,8.89851903]
[1736083983200,7.44,214.55,214.54,4.9511]
[1736083983378,7.44,214.55,214.54,8.89829629]
[1736083983676,7.44,214.55,214.54,8.89828013]
[1736083990591,7.44,214.55,214.54,8.90088124]
[1736083993193,7.44,214.55,214.54,8.89957391]
[1736083999019,7.44,214.55,214.54,4.9511]
[1736083999296,7.44,214.55,214.54,8.8967523]
[1736083999695,7.44,214.55,214.54,8.89698899]
[1736084002301,7.44,214.55,214.54,8.89688791]
[1736084005201,7.44,214.55,214.54,4.9511]
[1736084005400,7.44,214.55,214.54,8.89768607]
[1736084008399,7.44,214.55,214.54,4.9511]
[1736084008605,7.44,214.55,214.54,8.89981285]
[1736084008909,7.44,214.55,214.54,4.9511]
[1736084009110,7.44,214.55,214.54,8.90015132]
[1736084010511,7.44,214.55,214.54,4.9511]
[1736084010709,7.44,214.55,214.54,8.90267584]
[1736084011008,19.47,214.55,214.54,8.90267584]
[1736084013512,37.09,214.55,214.54,8.90267584]
[1736084017812,37.09,214.55,214.54,8.90321553]
[1736084018306,37.09,214.55,214.54,4.9511]
[1736084018507,37.09,214.55,214.54,8.90325792]
[1736084019923,37.09,214.55,214.54,4.9511]
[1736084020115,37.09,214.55,214.54,8.90327688]
[1736084020506,37.09,214.55,214.54,4.9511]
[1736084020713,37.09,214.55,214.54,8.90378194]
[1736084021114,37.09,214.55,214.54,4.9511]
[1736084021316,37.09,214.55,214.54,8.90383984]
[1736084026719,37.09,214.55,214.51,6.87422721]
[1736084026915,29.65,214.55,214.51,4.90742721]
[1736084027120,29.65,214.55,214.52,2.6]
[1736084027416,29.65,214.55,214.53,2.6]
[1736084027617,29.65,214.55,214.53,64.38115088]
[1736084027817,29.65,214.55,214.53,61.80215088]
[1736084028218,7.44,214.54,214.53,61.80215088]
[1736084028422,7.44,214.54,214.53,64.13325088]
[1736084029819,26.22,214.54,214.53,64.13325088]
[1736084034723,47.84,214.54,214.53,64.13325088]
[1736084045343,47.84,214.54,214.53,61.80215088]
[1736084045544,47.84,214.54,214.53,59.20215088]
[1736084046439,47.84,214.54,214.4,7.45122446]
[1736084046640,47.84,214.54,214.42,2.6]
[1736084046940,44.12,214.54,214.42,2.6]
[1736084047143,44.12,214.54,214.47,2.3318]
[1736084047442,46.4511,214.54,214.47,2.3318]
[1736084047636,46.4511,214.54,214.4,7.45122446]
[1736084047637,44.12,214.54,214.45,4.932]
[1736084047841,44.12,214.54,214.44,2.6]
[1736084048143,3.72,214.53,214.44,2.6]
[1736084048337,6.0513,214.53,214.46,2.3319]
[1736084048837,6.0513,214.53,214.44,2.6]
[1736084049235,6.0513,214.53,214.47,2.3318]
[1736084049442,6.0513,214.53,214.44,2.6]
[1736084049938,23.72,214.53,214.49,2.3316]
[1736084050542,23.72,214.53,214.5,2.3315]
[1736084051547,23.72,214.53,214.44,2.6]
[1736084051746,23.72,214.53,214.51,2.3313]
[1736084054540,23.72,214.53,214.44,2.6]
[1736084054742,23.72,214.53,214.5,2.3315]
[1736084056346,3.72,214.52,214.5,2.3315]
[1736084058843,17.25,214.52,214.5,2.3315]
[1736084062551,17.25,214.52,214.51,2.3314]
[1736084070660,17.25,214.52,214.49,2.3316]
[1736084071260,13.53,214.52,214.49,2.3316]
[1736084072459,3.72,214.51,214.49,2.3316]
[1736084072855,3.72,214.51,214.5,2.3315]
[1736084073354,7.44,214.51,214.5,2.3315]
[1736084073555,7.44,214.51,214.46,2.6]
[1736084074461,7.44,214.51,214.49,2.3316]
[1736084080067,43.2,214.51,214.49,2.3316]
[1736084081762,45.5314,214.51,214.47,2.3318]
[1736084081963,43.2,214.51,214.46,2.6]
[1736084082462,2.3317,214.49,214.46,2.6]
[1736084082664,2.3317,214.49,214.45,2.3321]
[1736084083663,2.3317,214.49,214.44,2.6]
[1736084085466,2.3317,214.49,214.45,2.3321]
[1736084085868,39.48,214.51,214.42,6.57327497]
[1736084086059,2.3319,214.47,214.43,2.3323]
[1736084086364,39.48,214.51,214.42,9.17327497]
[1736084086567,3.72,214.5,214.42,9.17327497]
[1736084086965,2.332,214.47,214.42,11.50567497]
[1736084087866,2.332,214.47,214.42,8.90567497]
[1736084088565,3.73,214.46,214.42,8.90567497]
[1736084089174,3.73,214.46,214.45,2.3321]
[1736084092370,21.78,214.46,214.45,2.3321]
[1736084092567,21.78,214.46,214.43,2.3323]
[1736084093368,37.81,214.46,214.43,2.3323]
[1736084094569,40.142,214.46,214.43,2.3323]
[1736084100871,40.142,214.46,214.42,9.17327497]
[1736084101979,40.142,214.46,214.42,11.50567497]
[1736084102171,37.81,214.46,214.42,9.17327497]
[1736084102477,33.2428,214.46,214.45,2.3321]
[1736084102775,30.9592,214.46,214.45,2.3321]
[1736084102989,30.9592,214.46,214.45,4.9121]
[1736084105573,30.9592,214.46,214.45,2.58]
[1736084106575,30.9592,214.46,214.45,4.9121]
[1736084106779,30.9592,214.46,214.45,2.58]
[1736084108976,30.9592,214.46,214.42,6.57327497]
[1736084110679,30.9592,214.46,214.42,8.90567497]
[1736084110879,3.73,214.45,214.42,8.90567497]
[1736084112181,21.18,214.45,214.42,8.90567497]
[1736084112794,21.18,214.45,214.42,6.57327497]
[1736084113679,23.5121,214.45,214.42,6.57327497]
[1736084114581,21.18,214.45,214.35,1.5051]
[1736084114882,21.18,214.45,214.36,2.58]
[1736084115378,2.3324,214.42,214.37,2.3329]
[1736084116578,21.18,214.45,214.35,4.0851]
[1736084117179,2.3327,214.4,214.35,6.4183]
[1736084117584,41.78,214.45,214.35,4.0851]
[1736084118081,2.3323,214.43,214.38,2.3327]
[1736084118685,2.3322,214.44,214.39,2.3327]
[1736084120075,2.3323,214.43,214.39,2.3327]
[1736084120287,41.78,214.45,214.4,2.3326]
[1736084120487,44.1121,214.45,214.35,4.0851]
[1736084120984,44.1121,214.45,214.4,2.3326]
[1736084122288,2.3322,214.44,214.4,2.3326]
[1736084122988,41.78,214.45,214.38,2.3327]
[1736084124090,2.3324,214.42,214.37,2.3329]
[1736084124682,41.78,214.45,214.35,1.5051]
[1736084124885,41.78,214.45,214.34,67.34012239]
[1736084125481,2.3329,214.38,214.34,69.67332239]
[1736084125683,41.78,214.45,214.34,67.34012239]
[1736084125884,1.4312,214.44,214.34,67.34012239]
[1736084126291,2.333,214.37,214.34,67.34012239]
[1736084126791,2.6,214.41,214.3,2.6]
[1736084126987,2.6,214.41,214.3,2.3336]
[1736084128488,2.3333,214.34,214.3,2.3336]
[1736084129293,17.5233,214.34,214.3,2.3336]
[1736084131497,2.3334,214.33,214.28,16.0165061]
[1736084131892,32.84,214.34,214.31,2.3335]
[1736084132092,32.84,214.34,214.28,16.2826061]
[1736084132489,32.84,214.34,214.31,2.3336]
[1736084134702,32.84,214.34,214.33,2.3334]
[1736084135200,36.57,214.34,214.33,2.3334]
[1736084135505,34.2861,214.34,214.33,4.9334]
[1736084138405,34.2861,214.34,214.33,2.6]
[1736084138805,34.2861,214.34,214.29,2.6]
[1736084139002,2.3335,214.33,214.28,20.0688061]
[1736084139197,34.2861,214.34,214.28,18.6165061]
[1736084139392,34.2861,214.34,214.28,16.0165061]
[1736084139999,2.3334,214.33,214.29,2.3338]
[1736084140605,2.3336,214.32,214.28,13.6826061]
[1736084140801,34.2861,214.34,214.28,13.6826061]
[1736084141307,3.73,214.33,214.28,13.6826061]
[1736084141604,2.3337,214.31,214.28,13.6826061]
[1736084142102,2.3339,214.29,214.24,2.3343]
[1736084142604,2.3339,214.29,214.23,2.6]
[1736084143109,3.73,214.33,214.23,2.6]
[1736084143305,2.3337,214.31,214.25,2.3343]
[1736084143604,3.73,214.33,214.25,2.3343]
[1736084144501,3.73,214.33,214.23,2.6]
[1736084144700,3.73,214.33,214.26,2.3341]
[1736084144896,17.62,214.33,214.23,2.6]
[1736084146507,19.9535,214.33,214.29,2.3338]
[1736084147612,35.2335,214.33,214.29,2.3338]
[1736084148508,32.9,214.33,214.23,2.6]
[1736084148714,2.3335,214.32,214.28,2.3339]
[1736084149709,2.3337,214.3,214.26,2.3341]
[1736084150605,32.9,214.33,214.22,2.6]
[1736084150811,2.3339,214.29,214.22,2.6]
[1736084151515,2.3339,214.29,214.25,2.3342]
[1736084152316,3.73,214.28,214.25,2.3342]
[1736084152913,3.73,214.28,214.21,2.6]
[1736084153115,6.064,214.28,214.23,2.3344]
[1736084153513,3.73,214.28,214.23,2.3344]
[1736084153823,2.3342,214.26,214.21,2.3346]
[1736084154026,3.73,214.28,214.21,2.3346]
[1736084155318,2.3342,214.26,214.21,2.3346]
[1736084155524,3.73,214.28,214.21,2.3346]
[1736084155725,3.73,214.28,214.22,2.3346]
[1736084155927,2.3342,214.26,214.22,2.3346]
[1736084157921,3.73,214.28,214.19,2.6]
[1736084158123,6.064,214.28,214.25,2.3343]
[1736084158623,6.064,214.28,214.23,2.3344]
[1736084158823,3.73,214.28,214.2,2.58]
[1736084160230,2.3344,214.24,214.2,4.9148]
[1736084160628,3.73,214.28,214.2,2.58]
[1736084160828,6.31,214.28,214.17,4.0819]
[1736084161433,2.3345,214.23,214.19,2.3349]
[1736084162524,6.31,214.28,214.14,105.23013798]
[1736084162729,1.3841,214.27,214.15,2.6]
[1736084163128,2.3347,214.22,214.16,2.3352]
[1736084163329,3.9841,214.27,214.15,2.6]
[1736084163625,2.3345,214.24,214.15,2.6]
[1736084165439,2.3345,214.24,214.19,2.3348]
[1736084165736,2.3345,214.23,214.19,2.3348]
[1736084167533,2.3346,214.22,214.19,2.3348]
[1736084168135,2.3345,214.23,214.19,2.3348]
[1736084169539,2.3343,214.25,214.2,2.3347]
[1736084169837,17.8543,214.25,214.16,1.4561]
[1736084170038,31.8543,214.25,214.16,1.4561]
[1736084170242,3.73,214.24,214.16,1.4561]
[1736084170734,6.0644,214.24,214.16,1.4561]
[1736084171326,6.0644,214.24,214.2,2.3347]
[1736084171527,3.73,214.24,214.16,1.4561]
[1736084172339,3.73,214.24,214.2,2.3347]
[1736084172639,3.73,214.23,214.16,1.4561]
[1736084173441,3.73,214.23,214.21,2.3346]
[1736084174538,3.73,214.23,214.22,2.3346]
[1736084184945,3.73,214.23,214.2,4.9348]
[1736084185147,17.56,214.23,214.2,2.6]
[1736084185751,19.8946,214.23,214.2,2.6]
[1736084187154,19.8946,214.23,214.19,4.9149]
[1736084187455,3.73,214.22,214.19,4.9149]
[1736084187755,3.73,214.22,214.16,1.4561]
[1736084187955,6.0646,214.22,214.17,4.915]
[1736084188256,21.8046,214.22,214.17,4.915]
[1736084192558,19.47,214.22,214.19,2.3349]
[1736084192759,19.47,214.22,214.17,2.58]
[1736084193461,19.47,214.22,214.18,2.335]
[1736084193957,21.8046,214.22,214.18,2.335]
[1736084198861,3.73,214.21,214.18,2.335]
[1736084200767,3.73,214.21,214.16,4.0361]
[1736084201561,3.73,214.21,214.2,2.3348]
[1736084207372,1.4452,214.21,214.2,2.3348]
[1736084208570,14.8152,214.21,214.2,2.3348]
[1736084213672,18.5452,214.21,214.2,2.3348]
[1736084215375,18.5452,214.21,214.2,2.58]
[1736084215574,18.5452,214.21,214.19,2.3349]
[1736084215775,18.5452,214.21,214.2,2.58]
[1736084216278,32.5752,214.21,214.2,2.58]
[1736084217071,32.5752,214.21,214.2,4.9148]
[1736084226988,31.13,214.21,214.2,4.9148]
[1736084234293,17.4208,214.21,214.2,4.9148]
[1736084234493,14.03,214.21,214.2,4.9148]
[1736084238490,14.03,214.21,214.2,2.3348]
[1736084238693,14.03,214.21,214.2,4.9148]
[1736084242797,14.03,214.21,214.2,2.3348]
[1736084242999,14.03,214.21,214.2,4.9148]
[1736084244602,14.03,214.21,214.2,2.3348]
[1736084244900,14.03,214.21,214.2,4.9148]
[1736084250106,17.76,214.21,214.2,4.9148]
[1736084253408,17.76,214.21,214.2,2.3348]
[1736084253603,17.76,214.21,214.2,4.9148]
[1736084254606,30.98,214.21,214.2,4.9148]
[1736084256411,30.98,214.21,214.2,2.3348]
[1736084256706,30.98,214.21,214.14,7.37678807]
[1736084257208,33.8428,214.21,214.16,2.3351]
[1736084257803,33.8428,214.21,214.15,2.58]
[1736084258404,33.8428,214.21,214.16,2.3351]
[1736084258604,33.8428,214.21,214.14,7.37678807]
[1736084258813,33.8428,214.21,214.14,9.95678807]
[1736084259206,2.3349,214.2,214.14,12.29218807]
[1736084259509,6.0649,214.2,214.14,12.29218807]
[1736084259700,6.0649,214.2,214.14,4.9154]
[1736084260099,6.0649,214.2,214.15,2.3353]
[1736084260299,6.0649,214.2,214.13,2.58]
[1736084260512,6.0649,214.2,214.04,6.49240055]
[1736084260513,16.4949,214.2,214.04,6.49240055]
[1736084260712,16.4949,214.2,214.11,2.58]
[1736084260912,16.4949,214.2,214.14,2.3354]
[1736084261304,16.4949,214.2,214.11,2.58]
[1736084261511,14.16,214.2,214.13,2.3355]